bitfinex/quotes_BTCUSD_20250618
["timestamp","ask_amount","ask_price","bid_price","bid_amount"]
[1750253257465,0.57158629,104160.0,104150.0,0.18079034]
[1750253258166,0.57160421,104160.0,104150.0,0.18079034]
[1750253258874,0.57160421,104160.0,104150.0,0.10424176]
[1750253259092,0.57160421,104160.0,104150.0,0.15424176]
[1750253259568,0.60420421,104160.0,104150.0,0.15424176]
[1750253259787,0.63470421,104160.0,104150.0,0.15424176]
[1750253260951,0.63470904,104160.0,104150.0,0.15424176]
[1750253261175,0.63470904,104160.0,104150.0,0.09174176]
[1750253261400,0.63470904,104160.0,104150.0,0.14174176]
[1750253262533,0.63470904,104160.0,104150.0,0.16764034]
[1750253262754,0.46654904,104160.0,104150.0,0.16764034]
[1750253262983,0.57168904,104160.0,104150.0,0.16764034]
[1750253263207,0.60278904,104160.0,104150.0,0.16764034]
[1750253263681,0.63418904,104160.0,104150.0,0.16764034]
[1750253264108,0.63418904,104160.0,104150.0,0.14174176]
[1750253264548,0.63418904,104160.0,104150.0,0.24294176]
[1750253265485,0.46594904,104160.0,104150.0,0.19294176]
[1750253265721,0.46594904,104160.0,104150.0,0.09174176]
[1750253265722,0.78402904,104160.0,104150.0,0.09174176]
[1750253265957,0.78402904,104160.0,104150.0,0.008]
[1750253265958,5.83402904,104160.0,104150.0,0.008]
[1750253266179,6.0409833,104160.0,104150.0,0.008]
[1750253266427,6.23402904,104160.0,104150.0,0.008]
[1750253266876,6.38724234,104160.0,104150.0,0.008]
[1750253267102,6.3302708,104160.0,104150.0,0.008]
[1750253267366,0.20163207,104150.0,104140.0,0.01604408]
[1750253267615,5.57856981,104150.0,104140.0,0.01604408]
[1750253268080,5.57855903,104150.0,104140.0,0.01604408]
[1750253268306,5.82480079,104150.0,104140.0,0.01604408]
[1750253268816,5.76983342,104150.0,104140.0,0.02104408]
[1750253269049,5.76883128,104150.0,104140.0,0.01804408]
[1750253269509,5.76983128,104150.0,104140.0,0.02204408]
[1750253270435,5.82666698,104150.0,104140.0,0.02204408]
[1750253270665,6.17930698,104150.0,104140.0,0.01804408]
[1750253270895,6.39390698,104150.0,104140.0,0.01804408]
[1750253271138,6.33707128,104150.0,104140.0,0.01804408]
[1750253271367,6.41393998,104150.0,104140.0,0.02004408]
[1750253271595,6.37708537,104150.0,104140.0,0.02004408]
[1750253271832,6.17924434,104150.0,104140.0,0.02004408]
[1750253272072,6.39396434,104150.0,104140.0,0.01804408]
[1750253272304,5.97936258,104150.0,104140.0,0.01804408]
[1750253272535,6.14776258,104150.0,104140.0,0.01804408]
[1750253272767,6.14876258,104150.0,104140.0,0.01904408]
[1750253274550,6.14875095,104150.0,104140.0,0.01904408]
[1750253277226,6.16779495,104150.0,104140.0,0.01904408]
[1750253277442,5.98427218,104150.0,104140.0,0.01904408]
[1750253277656,6.10138206,104150.0,104140.0,0.01904408]
[1750253277895,6.11098341,104150.0,104140.0,0.01904408]
[1750253278546,5.89522341,104150.0,104140.0,0.01904408]
[1750253278827,0.20165143,104140.0,104130.0,0.00250038]
[1750253279038,0.50021143,104140.0,104130.0,0.09634176]
[1750253279255,0.5179496,104140.0,104130.0,0.09634176]
[1750253279484,0.5468226,104140.0,104130.0,0.09634176]
[1750253279710,0.5468226,104140.0,104130.0,0.0001]
[1750253279711,0.6107226,104140.0,104130.0,0.0001]
[1750253279942,5.66072297,104140.0,104130.0,0.0001]
[1750253280175,5.66119633,104140.0,104130.0,0.0001]
[1750253280443,5.76450848,104140.0,104130.0,0.0001]
[1750253280648,5.95234431,104140.0,104130.0,0.0001]
[1750253280884,5.95235096,104140.0,104130.0,0.0001]
[1750253281115,0.83887809,104140.0,104130.0,0.0001]
[1750253281343,1.00823809,104140.0,104130.0,0.0001]
[1750253281577,0.89433779,104140.0,104130.0,0.0001]
[1750253281810,0.89533779,104140.0,104130.0,0.0021]
[1750253282041,0.72689779,104140.0,104130.0,0.0011]
[1750253282499,0.89729779,104140.0,104130.0,0.0051]
[1750253283209,0.89633779,104140.0,104130.0,0.0041]
[1750253283664,5.94733779,104140.0,104130.0,0.0041]
[1750253284364,6.04357955,104140.0,104130.0,0.0041]
[1750253284590,6.08142203,104140.0,104130.0,0.0041]
[1750253287467,6.13823357,104140.0,104130.0,0.0041]
[1750253288569,6.08959181,104140.0,104130.0,0.0041]
[1750253288783,6.05174933,104140.0,104130.0,0.0041]
[1750253290086,5.83470933,104140.0,104130.0,0.0041]
[1750253290332,6.05166933,104140.0,104130.0,0.0041]
[1750253291180,6.54186933,104140.0,104130.0,0.0041]
[1750253291391,6.02490933,104140.0,104130.0,0.0041]
[1750253291631,6.06279764,104140.0,104130.0,0.0041]
[1750253291852,6.1752261,104140.0,104130.0,0.0041]
[1750253292069,6.1752661,104140.0,104130.0,0.0041]
[1750253292283,6.1751861,104140.0,104130.0,0.0041]
[1750253292701,6.19295219,104140.0,104130.0,0.0041]
[1750253293131,6.24976373,104140.0,104130.0,0.0041]
[1750253294668,6.2497902,104140.0,104130.0,0.0041]
[1750253294883,6.19410933,104140.0,104130.0,0.0041]
[1750253298564,6.13729779,104140.0,104130.0,0.0041]
[1750253298782,6.19427553,104140.0,104130.0,0.0041]
[1750253298991,6.19427422,104140.0,104130.0,0.0041]
[1750253300150,6.02507422,104140.0,104130.0,0.0041]
[1750253300376,0.91117422,104140.0,104130.0,0.0041]
[1750253300602,0.94916482,104140.0,104130.0,0.10034176]
[1750253300824,0.89218839,104140.0,104130.0,0.10034176]
[1750253301047,0.19208605,104120.0,104110.0,99.55585478]
[1750253301302,0.49100605,104120.0,104110.0,99.65209654]
[1750253301521,0.49100605,104120.0,104110.0,99.74824576]
[1750253302183,0.51988405,104120.0,104110.0,99.74824576]
[1750253302597,0.52188405,104120.0,104110.0,99.75224576]
[1750253302810,0.52188405,104120.0,104110.0,99.65609654]
[1750253303252,0.49557638,104120.0,104110.0,99.65609654]
[1750253304319,0.50874844,104120.0,104110.0,99.65609654]
[1750253305266,0.50862844,104120.0,104110.0,99.65609654]
[1750253305485,0.50862844,104120.0,104110.0,99.75224576]
[1750253307239,0.54102844,104120.0,104110.0,99.75224576]
[1750253307455,0.54102844,104120.0,104110.0,99.65609654]
[1750253308647,0.57342844,104120.0,104110.0,99.65609654]
[1750253309316,0.50862844,104120.0,104110.0,99.65609654]
[1750253309759,0.57122844,104120.0,104110.0,99.65609654]
[1750253311819,0.40262844,104120.0,104110.0,99.75224576]
[1750253312050,0.57086844,104120.0,104110.0,99.75224576]
[1750253312789,0.50826844,104120.0,104110.0,99.75224576]
[1750253313466,0.54106844,104120.0,104110.0,99.75224576]
[1750253313687,0.57376844,104120.0,104110.0,99.65609654]
[1750253313909,0.50826844,104120.0,104110.0,99.65609654]
[1750253314370,0.53675907,104120.0,104110.0,99.65609654]
[1750253314601,0.60165907,104120.0,104110.0,99.65609654]
[1750253318123,0.60165907,104120.0,104110.0,99.55985478]
[1750253319036,1.09185907,104120.0,104110.0,99.55985478]
[1750253319493,1.06336844,104120.0,104110.0,99.55985478]
[1750253319722,1.10135904,104120.0,104110.0,99.55985478]
[1750253319990,0.96187106,104120.0,104110.0,99.656004]
[1750253322489,0.96187106,104120.0,104110.0,99.651004]
[1750253322719,0.96187106,104120.0,104110.0,99.55485478]
[1750253323159,0.99040469,104120.0,104110.0,99.55485478]
[1750253324299,0.82216469,104120.0,104110.0,99.55485478]
[1750253324530,0.98996469,104120.0,104110.0,99.55485478]
[1750253324753,0.98996469,104120.0,104110.0,99.651004]
[1750253324965,1.01884369,104120.0,104110.0,99.651004]
[1750253325665,1.01884369,104120.0,104110.0,99.55485478]
[1750253327227,1.01884168,104120.0,104110.0,99.55485478]
[1750253327474,6.06884168,104120.0,104110.0,99.55485478]
[1750253327725,6.07830066,104120.0,104110.0,99.55485478]
[1750253328384,6.07730066,104120.0,104110.0,99.55085478]
[1750253328868,6.07930066,104120.0,104110.0,99.55285478]
[1750253329091,6.07690853,104120.0,104110.0,99.55285478]
[1750253329321,6.07590853,104120.0,104110.0,99.64464706]
[1750253329547,6.07690853,104120.0,104110.0,99.64464706]
[1750253329779,6.08638008,104120.0,104110.0,99.64464706]
[1750253330489,6.08538008,104120.0,104110.0,99.64264706]
[1750253330949,6.11488866,104120.0,104110.0,99.64364706]
[1750253331177,6.07689806,104120.0,104110.0,99.64364706]
[1750253331400,6.07689806,104120.0,104110.0,99.55185478]
[1750253331853,6.11488866,104120.0,104110.0,99.55185478]
[1750253332554,6.07689806,104120.0,104110.0,99.55185478]
[1750253333251,6.04801906,104120.0,104110.0,99.55185478]
[1750253333473,5.86654025,104120.0,104110.0,99.55185478]
[1750253334140,5.91394025,104120.0,104110.0,99.55185478]
[1750253335731,5.91394025,104120.0,104110.0,99.648004]
[1750253336661,0.71284025,104120.0,104110.0,99.55185478]
[1750253336881,0.81654025,104120.0,104110.0,99.55185478]
[1750253337103,0.88064025,104120.0,104110.0,99.55185478]
[1750253337334,0.85213167,104120.0,104110.0,99.55185478]
[1750253337557,0.88064025,104120.0,104110.0,99.55185478]
[1750253338240,5.93064025,104120.0,104110.0,99.55185478]
[1750253338908,5.96863085,104120.0,104110.0,99.55185478]
[1750253339128,6.43636403,104120.0,104110.0,99.55185478]
[1750253342550,6.09021841,104120.0,104110.0,99.55185478]
[1750253343493,6.10920424,104120.0,104110.0,99.55185478]
[1750253345080,5.88442781,104120.0,104110.0,99.55185478]
[1750253345296,6.05218781,104120.0,104110.0,99.55185478]
[1750253346903,6.10912043,104120.0,104110.0,99.55185478]
[1750253347348,6.05218781,104120.0,104110.0,99.55185478]
[1750253348067,6.10911822,104120.0,104110.0,99.55185478]
[1750253348317,6.10911822,104120.0,104110.0,99.54685478]
[1750253349452,6.13474861,104120.0,104110.0,99.54685478]
[1750253349701,6.13474861,104120.0,104110.0,99.6153443]
[1750253349702,5.94135822,104120.0,104110.0,99.6153443]
[1750253349924,1.10619822,104120.0,104110.0,99.6153443]
[1750253350380,0.79511646,104120.0,104110.0,99.6153443]
[1750253350614,1.04791175,104120.0,104110.0,99.6153443]
[1750253351095,1.00995646,104120.0,104110.0,99.6153443]
[1750253351556,1.00995646,104120.0,104110.0,99.54685478]
[1750253352228,0.79511646,104120.0,104110.0,99.54685478]
[1750253352450,1.00995646,104120.0,104110.0,99.54685478]
[1750253352930,0.89424134,104120.0,104110.0,99.54685478]
[1750253353163,0.54116899,104120.0,104110.0,99.54685478]
[1750253353391,0.57146899,104120.0,104110.0,99.56299613]
[1750253353856,0.57146899,104120.0,104110.0,99.54685478]
[1750253354090,0.40370899,104120.0,104110.0,99.54685478]
[1750253354318,0.57146899,104120.0,104110.0,99.54685478]
[1750253354784,0.54300134,104120.0,104110.0,99.54685478]
[1750253356492,0.40412434,104120.0,104110.0,99.54685478]
[1750253356715,0.61896434,104120.0,104110.0,99.54685478]
[1750253356940,0.61896434,104120.0,104110.0,99.643004]
[1750253358316,0.61896434,104120.0,104110.0,99.54685478]
[1750253358317,0.67589475,104120.0,104110.0,99.54685478]
[1750253358557,0.61896434,104120.0,104110.0,99.54685478]
[1750253359009,0.67589475,104120.0,104110.0,99.54685478]
[1750253359229,0.61896434,104120.0,104110.0,99.54685478]
[1750253359449,0.67589475,104120.0,104110.0,99.54685478]
[1750253359666,0.67589475,104120.0,104110.0,99.54689478]
[1750253361033,0.46105475,104120.0,104110.0,99.643044]
[1750253361316,0.45120434,104120.0,104110.0,99.643044]
[1750253361553,0.47980134,104120.0,104110.0,99.643044]
[1750253362010,0.31204134,104120.0,104110.0,99.643044]
[1750253362239,0.47980134,104120.0,104110.0,99.643044]
[1750253362926,0.51050134,104120.0,104110.0,99.54689478]
[1750253363148,0.34274134,104120.0,104110.0,99.54689478]
[1750253363372,0.51050134,104120.0,104110.0,99.54689478]
[1750253364281,0.54090134,104120.0,104110.0,99.54689478]
[1750253367704,0.59783175,104120.0,104110.0,99.54689478]
[1750253371140,0.84783175,104120.0,104110.0,99.54689478]
[1750253371614,0.80987646,104120.0,104110.0,99.54689478]
[1750253371834,0.87674962,104120.0,104110.0,99.54689478]
[1750253372260,0.97299138,104120.0,104110.0,99.54689478]
[1750253374960,0.93500222,104120.0,104110.0,99.54689478]
[1750253375451,0.76724222,104120.0,104110.0,99.643044]
[1750253375688,0.83908046,104120.0,104110.0,99.54689478]
[1750253375917,0.87706408,104120.0,104110.0,99.54689478]
[1750253376354,0.70898408,104120.0,104110.0,99.54689478]
[1750253376594,0.92430408,104120.0,104110.0,99.54689478]
[1750253377257,0.70898408,104120.0,104110.0,99.54689478]
[1750253377710,0.92414408,104120.0,104110.0,99.54689478]
[1750253377926,1.07414408,104120.0,104110.0,99.54689478]
[1750253379045,1.03616046,104120.0,104110.0,99.54689478]
[1750253381798,1.03616046,104120.0,104110.0,99.54695378]
[1750253383865,1.13240222,104120.0,104110.0,99.54695378]
[1750253385922,0.96464222,104120.0,104110.0,99.54695378]
[1750253386174,1.13240222,104120.0,104110.0,99.643103]
[1750253387129,1.13240222,104120.0,104110.0,99.54695378]
[1750253393591,1.03455011,104120.0,104110.0,99.54695378]
[1750253400528,1.20343747,104120.0,104110.0,99.54695378]
[1750253400964,1.14650706,104120.0,104110.0,99.54695378]
[1750253401433,6.19650706,104120.0,104110.0,99.54695378]
[1750253401905,6.36991525,104120.0,104110.0,99.48245378]
[1750253402152,6.36991525,104120.0,104110.0,99.38675378]
[1750253402352,7.03223952,104120.0,104110.0,99.22903383]
[1750253402618,7.00243952,104120.0,104110.0,99.18413383]
[1750253402835,7.00843952,104120.0,104110.0,99.18413383]
[1750253403050,7.19737636,104120.0,104110.0,99.18413383]
[1750253403262,7.20097636,104120.0,104110.0,99.18413383]
[1750253403478,7.21297636,104120.0,104110.0,99.18413383]
[1750253403762,7.25699473,104120.0,104110.0,99.03973518]
[1750253403983,6.94749789,104120.0,104110.0,97.82266174]
[1750253404217,7.11973952,104120.0,104110.0,97.60949837]
[1750253404470,7.16973952,104120.0,104110.0,95.25371329]
[1750253404696,6.97002193,104120.0,104110.0,94.54496234]
[1750253404930,6.85802193,104120.0,104110.0,94.44396234]
[1750253405154,7.32936776,104120.0,104110.0,94.14096234]
[1750253405377,7.34336776,104120.0,104110.0,94.14096234]
[1750253405611,7.11460776,104120.0,104110.0,94.14096234]
[1750253405837,7.35537415,104120.0,104110.0,94.14096234]
[1750253406061,7.22974832,104120.0,104110.0,94.14096234]
[1750253406308,6.84169415,104120.0,104110.0,94.14096234]
[1750253406539,7.34645415,104120.0,104110.0,94.14096234]
[1750253406764,7.21478832,104120.0,104110.0,94.14096234]
[1750253406998,7.34045415,104120.0,104110.0,94.14096234]
[1750253407219,7.38245415,104120.0,104110.0,94.11196869]
[1750253407446,7.30678832,104120.0,104110.0,93.95385892]
[1750253407710,7.31378832,104120.0,104110.0,93.87825257]
[1750253407930,7.56378832,104120.0,104110.0,93.25155356]
[1750253408163,7.56378832,104120.0,104110.0,88.42503669]
[1750253408164,2.63728121,104120.0,104110.0,88.42503669]
[1750253408400,2.81732789,104120.0,104110.0,84.60716768]
[1750253408625,3.03212789,104120.0,104110.0,83.67627022]
[1750253408858,3.62550689,104120.0,104110.0,83.15853822]
[1750253409098,3.62550689,104120.0,104110.0,82.76958511]
[1750253409099,3.73398242,104120.0,104110.0,82.76958511]
[1750253409363,3.49757165,104120.0,104110.0,80.62304993]
[1750253409596,3.49977377,104120.0,104110.0,77.36461777]
[1750253409808,3.57432146,104120.0,104110.0,75.82359604]
[1750253410032,3.78932146,104120.0,104110.0,75.82259604]
[1750253410296,8.60207468,104120.0,104110.0,75.72665449]
[1750253410525,8.82331205,104120.0,104110.0,75.67538262]
[1750253410759,7.74659205,104120.0,104110.0,75.64337934]
[1750253411024,8.29305631,104120.0,104110.0,73.92637934]
[1750253411311,7.99271107,104120.0,104110.0,68.79248845]
[1750253411546,7.99271107,104120.0,104110.0,66.72572116]
[1750253411547,7.8446927,104120.0,104110.0,66.72572116]
[1750253411779,7.8446927,104120.0,104110.0,65.81672116]
[1750253411780,7.3236927,104120.0,104110.0,65.81672116]
[1750253412015,7.26711023,104120.0,104110.0,65.51372116]
[1750253412252,7.55991023,104120.0,104110.0,65.51372116]
[1750253412473,7.54991023,104120.0,104110.0,65.41272116]
[1750253412728,7.44991023,104120.0,104110.0,65.41272116]
[1750253412955,7.47091023,104120.0,104110.0,65.41272116]
[1750253413204,7.28141023,104120.0,104110.0,65.41272116]
[1750253413426,6.86899023,104120.0,104110.0,64.90772116]
[1750253413681,7.52552782,104120.0,104110.0,64.90772116]
[1750253413901,7.50390978,104120.0,104110.0,64.90772116]
[1750253414382,7.50390978,104120.0,104110.0,64.75163996]
[1750253414383,7.58911442,104120.0,104110.0,64.75163996]
[1750253414602,7.68435173,104120.0,104110.0,64.6367357]
[1750253414829,7.44176134,104120.0,104110.0,64.55941158]
[1750253415050,4.54328107,104120.0,104110.0,61.49752058]
[1750253415282,4.61471071,104120.0,104110.0,60.34279106]
[1750253415506,4.61467071,104120.0,104110.0,59.18802449]
[1750253415743,4.29727071,104120.0,104110.0,59.18802449]
[1750253415972,4.43586939,104120.0,104110.0,59.18802449]
[1750253416191,4.54466434,104120.0,104110.0,59.18802449]
[1750253416411,4.49466434,104120.0,104110.0,59.18802449]
[1750253416671,4.50211668,104120.0,104110.0,59.18802449]
[1750253416892,4.30722403,104120.0,104110.0,59.18802449]
[1750253417130,4.52470403,104120.0,104110.0,58.80313953]
[1750253417366,4.52470403,104120.0,104110.0,58.03336961]
[1750253417601,4.40730554,104120.0,104110.0,56.87871473]
[1750253417857,4.50455819,104120.0,104110.0,56.87871473]
[1750253418096,4.52530791,104120.0,104110.0,54.95421591]
[1750253418326,4.57332628,104120.0,104110.0,53.79948701]
[1750253418557,4.49789526,104120.0,104110.0,52.64483213]
[1750253418782,4.47668722,104120.0,104110.0,52.64483213]
[1750253419011,4.03689178,104120.0,104110.0,52.25993839]
[1750253419251,4.38293897,104120.0,104110.0,51.87505349]
[1750253419489,3.77623897,104120.0,104110.0,50.72039879]
[1750253419724,3.77623897,104120.0,104110.0,50.33551389]
[1750253419725,4.10859897,104120.0,104110.0,50.33551389]
[1750253419958,4.15759897,104120.0,104110.0,50.33551389]
[1750253420184,4.37863897,104120.0,104110.0,50.33551389]
[1750253421167,4.44680706,104120.0,104110.0,48.79597414]
[1750253421405,4.38176514,104120.0,104110.0,47.64131931]
[1750253421633,4.38176514,104120.0,104110.0,46.10177956]
[1750253421634,4.43176514,104120.0,104110.0,46.10177956]
[1750253421898,4.4765335,104120.0,104110.0,44.71888034]
[1750253422127,4.4765335,104120.0,104110.0,43.56411437]
[1750253422360,4.4765335,104120.0,104110.0,42.02442641]
[1750253422589,4.4765335,104120.0,104110.0,40.86966044]
[1750253422826,4.4765335,104120.0,104110.0,40.09981646]
[1750253423046,4.4765335,104120.0,104110.0,38.5601285]
[1750253423298,4.4765335,104120.0,104110.0,38.17520651]
[1750253423533,4.4765335,104120.0,104110.0,37.79028451]
[1750253423763,4.2564935,104120.0,104110.0,37.02044051]
[1750253423980,4.4768535,104120.0,104110.0,37.02044051]
[1750253424204,4.4758535,104120.0,104110.0,37.02044051]
[1750253424696,4.4758535,104120.0,104110.0,36.63551788]
[1750253424948,4.2554935,104120.0,104110.0,36.63551788]
[1750253425201,4.4758935,104120.0,104110.0,36.63551788]
[1750253425665,4.49093634,104120.0,104110.0,36.63551788]
[1750253426094,4.29094433,104120.0,104110.0,36.63551788]
[1750253426312,4.51193738,104120.0,104110.0,36.63551788]
[1750253426549,4.60554093,104120.0,104110.0,36.63451788]
[1750253426777,4.10426093,104120.0,104110.0,36.63411788]
[1750253427025,4.15426093,104120.0,104110.0,36.63411788]
[1750253427252,4.60562093,104120.0,104110.0,36.63411788]
[1750253427722,3.95426093,104120.0,104110.0,36.63411788]
[1750253427946,4.18534093,104120.0,104110.0,36.63411788]
[1750253428179,4.40570093,104120.0,104110.0,36.63411788]
[1750253428424,3.35426093,104120.0,104110.0,36.63411788]
[1750253428685,3.80666093,104120.0,104110.0,36.66481788]
[1750253428910,4.30562093,104120.0,104110.0,36.66481788]
[1750253429135,4.08534093,104120.0,104110.0,36.66481788]
[1750253429356,4.03534093,104120.0,104110.0,36.66481788]
[1750253429612,4.07334093,104120.0,104110.0,36.69271788]
[1750253429840,4.29454093,104120.0,104110.0,36.69271788]
[1750253430063,4.25554093,104120.0,104110.0,36.69271788]
[1750253430502,4.21454093,104120.0,104110.0,36.69271788]
[1750253430732,4.00664093,104120.0,104110.0,36.69271788]
[1750253430995,4.22688093,104120.0,104110.0,36.69271788]
[1750253431229,3.99159809,104120.0,104110.0,36.69271788]
[1750253431454,4.21175809,104120.0,104110.0,36.69121788]
[1750253431688,3.51175809,104120.0,104110.0,36.69121788]
[1750253431912,3.56171809,104120.0,104110.0,36.69121788]
[1750253432140,3.53171809,104120.0,104110.0,36.69121788]
[1750253432361,3.53167809,104120.0,104110.0,36.69121788]
[1750253432589,3.56167809,104120.0,104110.0,36.69121788]
[1750253433033,3.50067809,104120.0,104110.0,36.69121788]
[1750253433555,3.00667809,104120.0,104110.0,36.69121788]
[1750253433780,3.53767809,104120.0,104110.0,36.69121788]
[1750253434008,3.55163809,104120.0,104110.0,36.69221788]
[1750253434234,3.50163809,104120.0,104110.0,36.69221788]
[1750253434382,3.56667823,104120.0,104110.0,36.69221788]
[1750253435877,2.96667823,104120.0,104110.0,36.69221788]
[1750253436265,3.51667823,104120.0,104110.0,36.69221788]
[1750253436481,3.50163809,104120.0,104110.0,36.69221788]
[1750253436695,3.55163809,104120.0,104110.0,36.69221788]
[1750253437124,3.33159809,104120.0,104110.0,36.69221788]
[1750253437405,3.55151809,104120.0,104110.0,36.69221788]
[1750253437830,2.95151809,104120.0,104110.0,36.69221788]
[1750253438047,2.77557495,104120.0,104110.0,36.69221788]
[1750253438261,3.04549495,104120.0,104110.0,36.69221788]
[1750253438470,1.06625349,104120.0,104110.0,36.69221788]
[1750253438664,1.28601349,104120.0,104110.0,36.69221788]
[1750253438967,1.06625349,104120.0,104110.0,36.69221788]
[1750253439190,1.28597349,104120.0,104110.0,36.69221788]
[1750253439408,1.11525349,104120.0,104110.0,36.69221788]
[1750253439624,1.28593349,104120.0,104110.0,36.69221788]
[1750253439844,1.33593349,104120.0,104110.0,36.69221788]
[1750253440258,1.28593349,104120.0,104110.0,36.69221788]
[1750253440938,1.31593349,104120.0,104110.0,36.69121788]
[1750253441154,1.31793349,104120.0,104110.0,36.69221788]
[1750253441375,1.31809349,104120.0,104110.0,36.69221788]
[1750253441593,1.26809349,104120.0,104110.0,36.69221788]
[1750253441996,1.27609349,104120.0,104110.0,36.69321788]
[1750253442241,1.05625349,104120.0,104110.0,36.69321788]
[1750253442441,1.19205851,104120.0,104110.0,36.69321788]
[1750253443818,1.02125632,104120.0,104110.0,36.69321788]
[1750253444056,0.82967169,104120.0,104110.0,36.69321788]
[1750253444284,0.72390362,104120.0,104110.0,36.69321788]
[1750253444527,0.25940362,104120.0,104110.0,36.69421788]
[1750253444764,0.55774967,104120.0,104110.0,36.69421788]
[1750253444985,0.59233016,104120.0,104110.0,36.69421788]
[1750253445222,0.55469814,104120.0,104110.0,36.69421788]
[1750253445449,0.70469814,104120.0,104110.0,36.69421788]
[1750253445677,0.70469814,104120.0,104110.0,36.76544807]
[1750253445920,0.55469814,104120.0,104110.0,36.76544807]
[1750253446153,0.55468546,104120.0,104110.0,36.76544807]
[1750253446441,0.55472546,104120.0,104110.0,36.76544807]
[1750253446670,0.55472546,104120.0,104110.0,36.69421788]
[1750253446671,0.38392546,104120.0,104110.0,36.69421788]
[1750253446899,0.55464546,104120.0,104110.0,36.69421788]
[1750253447351,0.80464546,104120.0,104110.0,36.69421788]
[1750253448532,0.95464546,104120.0,104110.0,36.69421788]
[1750253448756,0.98298681,104120.0,104110.0,36.69421788]
[1750253449233,0.98296851,104120.0,104110.0,36.69421788]
[1750253449465,1.11596349,104120.0,104110.0,36.69421788]
[1750253449687,1.1071129,104120.0,104110.0,36.66351788]
[1750253450130,1.16638879,104120.0,104110.0,36.66351788]
[1750253450361,1.11610879,104120.0,104110.0,36.66351788]
[1750253450797,1.16610879,104120.0,104110.0,36.66351788]
[1750253451691,1.11610879,104120.0,104110.0,36.66351788]
[1750253451922,1.16610879,104120.0,104110.0,36.66351788]
[1750253452142,1.16610548,104120.0,104110.0,36.66351788]
[1750253452365,1.2323505,104120.0,104110.0,36.66351788]
[1750253452588,1.2323505,104120.0,104110.0,36.69471788]
[1750253453303,1.31634548,104120.0,104110.0,36.66351788]
[1750253453950,1.31634548,104120.0,104110.0,36.63351788]
[1750253454653,1.33516149,104120.0,104110.0,36.63351788]
[1750253454865,1.33518795,104120.0,104110.0,36.63351788]
[1750253455089,6.15905992,104120.0,104110.0,36.63351788]
[1750253455316,6.51628396,104120.0,104110.0,36.63351788]
[1750253455564,6.77786682,104120.0,104110.0,36.63351788]
[1750253455838,6.87194688,104120.0,104110.0,36.63351788]
[1750253456056,6.86394688,104120.0,104110.0,36.63251788]
[1750253456286,6.86194688,104120.0,104110.0,36.63151788]
[1750253456523,7.01194688,104120.0,104110.0,36.61996736]
[1750253456806,6.99804877,104120.0,104110.0,35.46631056]
[1750253457304,6.81021469,104120.0,104110.0,35.46531056]
[1750253457522,6.85411269,104120.0,104110.0,35.46731056]
[1750253457739,7.55411269,104120.0,104110.0,35.46731056]
[1750253458184,7.56611269,104120.0,104110.0,35.46831056]
[1750253458848,7.58115309,104120.0,104110.0,35.46831056]
[1750253459288,6.88115309,104120.0,104110.0,35.46831056]
[1750253459504,6.88617623,104120.0,104110.0,35.46831056]
[1750253459732,6.88617623,104120.0,104110.0,34.87615946]
[1750253460419,6.88618557,104120.0,104110.0,34.87615946]
[1750253460917,6.90685248,104120.0,104110.0,34.87615946]
[1750253461948,7.01743403,104120.0,104110.0,34.87615946]
[1750253462204,7.71743403,104120.0,104110.0,34.87615946]
[1750253462968,7.71042093,104120.0,104110.0,34.87515946]
[1750253463481,6.65067898,104120.0,104110.0,34.87315946]
[1750253463744,6.88319898,104120.0,104110.0,34.87315946]
[1750253463988,6.93319898,104120.0,104110.0,34.87315946]
[1750253464693,6.93319611,104120.0,104110.0,34.87315946]
[1750253464915,6.94823785,104120.0,104110.0,34.87315946]
[1750253465859,5.97771785,104120.0,104110.0,34.87315946]
[1750253466076,6.64565094,104120.0,104110.0,34.87315946]
[1750253466293,7.39585094,104120.0,104110.0,34.87315946]
[1750253466515,7.42835094,104120.0,104110.0,34.87315946]
[1750253466957,7.19345094,104120.0,104110.0,34.87315946]
[1750253467180,6.44633094,104120.0,104110.0,34.87315946]
[1750253467394,6.39465094,104120.0,104110.0,34.87315946]
[1750253467610,6.62185094,104120.0,104110.0,34.87315946]
[1750253468286,6.62184837,104120.0,104110.0,34.87315946]
[1750253468505,6.61584837,104120.0,104110.0,34.87315946]
[1750253468720,6.66082523,104120.0,104110.0,34.87315946]
[1750253468934,6.66382523,104120.0,104110.0,34.87315946]
[1750253469415,6.61382523,104120.0,104110.0,34.87315946]
[1750253469637,6.65182523,104120.0,104110.0,34.87315946]
[1750253469843,6.60982523,104120.0,104110.0,34.87315946]
[1750253470284,6.64478349,104120.0,104110.0,34.87315946]
[1750253470516,6.36758349,104120.0,104110.0,34.93705946]
[1750253470749,0.43241659,104120.0,104110.0,34.93705946]
[1750253470986,0.98241659,104120.0,104110.0,34.93705946]
[1750253471211,0.93073659,104120.0,104110.0,34.93705946]
[1750253471441,0.84674161,104120.0,104110.0,34.93705946]
[1750253471662,1.02214161,104120.0,104110.0,34.93705946]
[1750253471883,0.84674161,104120.0,104110.0,34.93705946]
[1750253472103,1.07234161,104120.0,104110.0,34.93705946]
[1750253472325,1.01934161,104120.0,104110.0,34.93705946]
[1750253472538,1.06934161,104120.0,104110.0,34.93705946]
[1750253472751,1.07034161,104120.0,104110.0,34.93705946]
[1750253473214,1.01134161,104120.0,104110.0,34.93705946]
[1750253473448,1.14733659,104120.0,104110.0,34.93805946]
[1750253473702,6.23062171,104120.0,104110.0,34.90565946]
[1750253473931,1.02440969,104120.0,104110.0,34.93675946]
[1750253474150,1.19788969,104120.0,104110.0,34.93575946]
[1750253474614,1.24067198,104120.0,104110.0,34.93575946]
[1750253474845,1.29634542,104120.0,104110.0,34.93575946]
[1750253475078,1.103957,104120.0,104110.0,34.93575946]
[1750253475305,1.104957,104120.0,104110.0,34.93575946]
[1750253476511,0.91180902,104120.0,104110.0,34.93575946]
[1750253476724,1.08728902,104120.0,104110.0,34.93575946]
[1750253477195,6.29017515,104120.0,104110.0,34.87315946]
[1750253477415,6.25121823,104120.0,104110.0,34.87315946]
[1750253477644,6.32679543,104120.0,104110.0,34.87315946]
[1750253478087,6.32703543,104120.0,104110.0,34.87315946]
[1750253478328,6.32603543,104120.0,104110.0,34.87315946]
[1750253478764,6.33003543,104120.0,104110.0,34.87315946]
[1750253479205,6.15431543,104120.0,104110.0,34.87315946]
[1750253479418,6.37675543,104120.0,104110.0,34.87315946]
[1750253479682,6.37676092,104120.0,104110.0,34.87315946]
[1750253479901,6.38476092,104120.0,104110.0,34.87315946]
[1750253480129,6.15732092,104120.0,104110.0,34.87315946]
[1750253480355,0.60926372,104120.0,104110.0,34.93835946]
[1750253480577,1.08032018,104120.0,104110.0,34.93835946]
[1750253480801,1.16814464,104120.0,104110.0,34.93835946]
[1750253481026,1.0613732,104120.0,104110.0,34.93835946]
[1750253481253,0.8855732,104120.0,104110.0,34.93835946]
[1750253481502,0.72612528,104120.0,104110.0,34.93835946]
[1750253481724,0.59252252,104140.0,104110.0,35.06555044]
[1750253481943,0.75140252,104140.0,104120.0,0.17489463]
[1750253482179,0.1920676,104130.0,104120.0,0.23729463]